bitfinex-derivatives/quotes_ETHF0:USTF0_20251024
["timestamp","ask_amount","ask_price","bid_price","bid_amount"]
[1761321993137,5.882,3872.9,3872.7,0.46471]
[1761321993431,2.6742,3873.3,3872.9,1.16172]
[1761321993834,2.6742,3873.3,3873.1,0.46467]
[1761321994238,2.6742,3872.9,3872.8,0.4647]
[1761321994545,5.882,3872.9,3872.8,10.2607]
[1761321995139,5.882,3872.9,3872.8,10.26367581]
[1761321995339,5.882,3872.9,3872.8,10.26267581]
[1761321997841,5.5132,3872.9,3872.8,10.26267581]
[1761321998438,2.3054,3872.9,3872.8,10.26267581]
[1761321998744,5.5132,3872.9,3872.8,10.26067581]
[1761321999845,5.5132,3872.9,3872.8,9.79597581]
[1761322000047,5.5132,3872.9,3872.8,10.26067581]
[1761322000438,5.5132,3872.9,3872.8,9.79597581]
[1761322000745,5.5132,3872.9,3872.8,10.26067581]
[1761322001048,2.3054,3871.7,3871.5,0.46486]
[1761322001237,2.3054,3871.7,3870.8,1.16236]
[1761322001238,2.3054,3871.5,3871.2,0.46488]
[1761322001432,2.3054,3871.5,3870.3,1.1625]
[1761322001638,2.3054,3871.1,3871.0,0.46491]
[1761322001839,2.3054,3871.1,3871.0,9.50491]
[1761322002640,4.2102,3871.2,3871.0,9.50491]
[1761322002847,2.3054,3871.5,3871.4,0.46487]
[1761322003041,5.5132,3871.7,3871.6,0.46485]
[1761322003240,1.4168,3871.8,3871.7,0.0974]
[1761322003434,5.5132,3872.5,3872.4,0.46475]
[1761322003738,5.5132,3872.5,3872.4,10.25475]
[1761322004740,5.5132,3872.5,3872.4,0.46475]
[1761322004935,5.5132,3872.5,3871.7,0.00295097]
[1761322004936,3.2078,3872.5,3871.7,0.00295097]
[1761322005143,2.3054,3872.3,3872.2,0.46478]
[1761322005945,2.3054,3872.3,3872.1,0.46478]
[1761322007948,2.77017,3872.3,3871.9,0.46481]
[1761322008149,5.5132,3872.0,3871.9,0.46481]
[1761322009440,2.3054,3872.0,3871.9,0.46481]
[1761322013452,3.2078,3872.4,3872.3,0.56216]
[1761322013647,3.2078,3872.8,3872.7,0.46472]
[1761322013847,3.2078,3872.8,3872.7,10.24972]
[1761322014052,3.3639,3873.0,3872.9,0.46469]
[1761322014452,3.3639,3873.0,3872.8,3.2078]
[1761322014453,2.3075622,3873.5,3873.4,0.46463]
[1761322014654,2.3075622,3873.5,3873.4,10.24863]
[1761322016462,2.3075622,3873.5,3873.4,9.784]
[1761322016659,2.3075622,3873.5,3873.3,0.46464]
[1761322016660,2.3054,3872.9,3872.4,1.16188]
[1761322016962,2.3054,3872.9,3872.7,0.46471]
[1761322021068,2.3054,3872.9,3872.8,0.4647]
[1761322023366,2.3054,3872.9,3872.8,0.60496038]
[1761322023768,2.4122,3873.3,3873.2,0.46465]
[1761322023963,2.4122,3873.3,3873.2,10.24165]
[1761322025561,3.2099622,3873.5,3873.2,9.777]
[1761322025762,3.2099622,3873.5,3873.4,0.46463]
[1761322026171,5.6221622,3873.5,3873.4,0.46463]
[1761322026568,5.6221622,3873.5,3873.4,10.23963]
[1761322027771,2.4143622,3873.5,3873.4,10.23963]
[1761322030475,2.4143622,3873.5,3873.4,0.46463]
[1761322030674,2.4143622,3873.5,3873.4,10.23563]
[1761322032669,0.0021622,3873.5,3873.4,15.23563]
[1761322032868,3.2557,3874.2,3874.1,0.46455]
[1761322033074,3.2078,3874.3,3874.2,0.46453]
[1761322033274,5.4611,3874.7,3874.6,0.46449]
[1761322033466,5.4611,3874.7,3874.6,10.23349]
[1761322034266,3.2078,3875.1,3875.0,0.46443]
[1761322034475,5.4611,3875.1,3875.0,10.23243]
[1761322035282,5.46333938,3875.1,3875.0,10.37598366]
[1761322035474,5.46333938,3875.1,3875.0,10.23427551]
[1761322035779,2.25553938,3875.1,3875.0,10.23427551]
[1761322035976,0.00223938,3875.1,3875.0,10.23427551]
[1761322036279,0.00223938,3875.1,3875.0,15.23427551]
[1761322036473,0.00223938,3875.1,3875.0,15.37270717]
[1761322038076,2.2533,3875.9,3875.8,0.46434]
[1761322038274,0.8943,3876.6,3876.1,0.46431]
[1761322038275,2.2533,3876.2,3876.1,0.46431]
[1761322038475,5.4611,3876.4,3876.3,0.46429]
[1761322038670,2.2533,3876.4,3876.3,0.46429]
[1761322039084,3.1476,3876.6,3876.5,0.46426]
[1761322039382,3.15051305,3876.6,3876.5,10.22626]
[1761322039688,2.25621305,3876.6,3876.5,10.22626]
[1761322039881,0.00291305,3876.6,3876.5,10.22626]
[1761322040272,3.05e-06,3876.6,3876.5,15.22626]
[1761322040979,3.05e-06,3876.6,3876.5,18.58486084]
[1761322041285,2.2533,3877.6,3877.5,0.46414]
[1761322041482,2.2533,3877.6,3877.5,10.22314]
[1761322041984,3.2078,3877.7,3877.5,10.22314]
[1761322042185,0.9163,3877.8,3877.7,0.46412]
[1761322042392,0.022,3877.8,3877.7,0.46412]
[1761322042587,0.02446758,3877.8,3877.7,0.46412]
[1761322042977,0.02446758,3877.8,3877.5,10.22314]
[1761322042978,2.2533,3877.7,3877.5,10.22314]
[1761322044484,2.2533,3877.7,3877.6,9.755]
[1761322044891,5.4611,3877.7,3877.6,9.755]
[1761322047586,3.2078,3877.7,3877.5,0.46414]
[1761322047780,2.2533,3877.1,3876.8,3.2078]
[1761322048089,2.2533,3877.1,3877.0,0.46419]
[1761322049290,0.91876758,3877.8,3877.5,0.46414]
[1761322049479,0.91876758,3877.8,3877.1,1.16048]
[1761322049480,0.02446758,3877.8,3877.7,0.83992]
[1761322049789,0.02446758,3877.8,3877.7,10.21212]
[1761322050992,0.91876758,3877.8,3877.7,10.21112]
[1761322051387,2.2533,3877.7,3877.4,0.46415]
[1761322051586,2.2533,3877.7,3877.5,9.746]
[1761322051892,2.2533,3877.7,3877.6,9.746]
[1761322052686,5.4611,3877.7,3877.6,9.746]
[1761322054384,5.4611,3877.7,3877.6,10.21013]
[1761322054692,5.4611,3877.7,3877.6,9.746]
[1761322055080,5.92522,3877.7,3877.6,9.746]
[1761322055392,0.8943,3876.6,3875.6,1.16093]
[1761322055590,0.8943,3876.0,3875.8,0.46434]
[1761322055786,2.2533,3875.8,3875.1,3.5836]
[1761322055993,2.2533,3875.8,3875.6,0.46436]
[1761322056191,2.2533,3875.8,3875.7,9.742]
[1761322062195,2.2533,3875.8,3875.7,10.20636]
[1761322067199,2.2533,3875.8,3875.7,0.46436]
[1761322067408,2.1844,3875.3,3875.0,10.00184551]
[1761322067601,2.1844,3875.3,3875.2,0.46442]
[1761322069186,3.2078,3875.5,3875.4,1.10369]
[1761322069592,3.2078,3875.5,3875.4,0.46439]
[1761322070595,4.1021,3876.0,3875.9,0.46433]
[1761322070805,4.1021,3876.0,3875.9,10.19733]
[1761322071195,6.2865,3876.0,3875.9,10.19733]
[1761322075307,9.2084,3876.0,3875.9,10.19733]
[1761322076401,6.2865,3876.0,3875.9,11.47593]
[1761322076907,7.8254,3876.0,3875.9,11.47593]
[1761322077901,0.90304322,3877.7,3877.6,2.40243]
[1761322078101,0.02446758,3877.8,3877.7,1.9383]
[1761322078300,0.02446758,3877.8,3877.6,0.46413]
[1761322078500,0.02446758,3877.8,3877.7,9.726]
[1761322078810,5.48857758,3877.8,3877.6,9.725]
[1761322079008,0.48857758,3877.8,3877.6,9.725]
[1761322079706,0.48857758,3877.8,3877.4,0.46415]
[1761322079707,0.46413,3877.6,3877.2,9.725]
[1761322079915,1.9449,3877.5,3877.4,0.46415]
[1761322081711,5.0,3877.5,3876.7,3.2078]
[1761322081910,1.9449,3876.8,3876.6,0.46425]
[1761322082514,2.40913,3876.8,3876.6,0.46425]
[1761322082912,0.7546,3876.6,3876.1,5.555]
[1761322083115,1.9449,3876.5,3876.3,0.46428]
[1761322084110,3.16382,3876.0,3875.9,0.46433]
[1761322084701,1.9449,3875.8,3875.7,0.46435]
[1761322084907,1.9449,3875.8,3875.5,3.2078]
[1761322085316,2.40926,3875.7,3875.6,0.46436]
[1761322085812,0.46438,3875.6,3875.1,3.2078]
[1761322086004,2.6995,3875.4,3875.3,0.46441]
[1761322086611,3.9624,3876.0,3875.9,0.46433]
[1761322086808,3.2078,3877.0,3876.9,0.46421]
[1761322087109,3.2078,3877.0,3876.8,0.46422]
[1761322087313,1.9449,3876.9,3876.8,0.46422]
[1761322087509,0.46423,3876.8,3876.5,9.718]
[1761322087709,2.1591,3876.7,3876.6,0.46425]
[1761322088212,2.1591,3876.5,3875.7,2.1341]
[1761322088511,2.1591,3876.3,3875.8,10.87787]
[1761322088719,2.1591,3876.3,3876.2,0.4643]
[1761322091905,2.1591,3876.3,3876.2,2.5984]
[1761322092500,0.801,3876.6,3876.2,2.5984]
[1761322092717,3.2078,3877.0,3876.9,0.46422]
[1761322093418,0.7546,3877.2,3877.1,0.46419]
[1761322093716,1.32428718,3877.2,3877.1,0.46419]
[1761322093917,3.94756718,3877.2,3877.1,0.46419]
[1761322094611,6.32428718,3877.2,3876.4,3.29479]
[1761322094817,0.46421,3877.0,3876.9,0.46421]
[1761322095114,2.62331,3877.0,3876.9,0.46421]
[1761322095319,5.83111,3877.0,3876.9,0.46421]
[1761322095509,2.62334,3876.7,3876.6,0.46424]
[1761322096214,2.1591,3876.5,3876.3,9.713]
[1761322097116,2.62338,3876.4,3876.3,0.46429]
[1761322098020,2.1591,3876.3,3875.9,2.1341]
[1761322098314,2.1591,3876.3,3876.2,0.4643]
[1761322098512,2.1591,3876.5,3876.4,0.46428]
[1761322098712,2.1591,3876.5,3876.4,9.708]
[1761322098912,2.62336,3876.5,3876.4,9.708]
[1761322099612,3.9624,3877.2,3876.7,2.59834]
[1761322099808,3.9624,3877.2,3877.1,0.46419]
[1761322099809,6.1215,3877.2,3877.1,0.46419]
[1761322100008,6.69177906,3877.2,3877.1,0.46419]
[1761322100719,7.15595906,3877.2,3877.1,0.46419]
[1761322101313,3.94815906,3877.2,3877.1,0.46419]
[1761322103321,3.2078,3877.6,3877.5,0.46414]
[1761322103516,0.02446758,3877.8,3877.7,2.59822]
[1761322103920,2.18356758,3877.8,3877.7,2.59822]
[1761322104623,0.02446758,3877.8,3877.7,12.30022]
[1761322107625,0.46395,3879.1,3879.0,2.59805]
[1761322107626,2.1591,3879.1,3879.0,2.59805]
[1761322107822,5.3669,3879.3,3879.2,2.59804]
[1761322108014,2.1591,3879.3,3879.2,2.59804]
[1761322109127,2.1591,3879.5,3879.4,2.59801]
[1761322109718,2.1591,3879.7,3879.6,0.46389]
[1761322109934,2.1591,3879.5,3879.4,9.69878942]
[1761322111819,7.1591,3879.5,3879.4,0.00278942]
[1761322112215,0.46401,3878.7,3878.5,12.9028]
[1761322112429,2.1591,3878.6,3878.5,9.695]
[1761322112831,2.1591,3878.6,3878.5,11.8291]
[1761322113127,2.1591,3878.8,3878.7,0.46399]
[1761322113325,0.90304322,3880.2,3879.2,0.46394]
[1761322113516,3.18755158,3881.7,3880.3,2.1341]
[1761322113517,0.90304322,3881.0,3880.3,2.1341]
[1761322113724,3.2078,3881.0,3880.3,2.1341]
[1761322114122,3.2078,3881.0,3880.1,2.1341]
[1761322114123,0.46379,3880.5,3880.1,2.1341]
[1761322114318,0.46377,3880.7,3880.1,2.1341]
[1761322114622,0.46377,3880.7,3880.0,3.2078]
[1761322114623,0.46378,3880.6,3880.3,2.5979]
[1761322115027,0.46377,3880.7,3880.4,2.59789]
[1761322115231,0.46378,3880.6,3880.4,2.59789]
[1761322115422,2.62288,3880.6,3880.4,2.1341]
[1761322116127,5.0,3880.6,3880.0,3.2078]
[1761322116333,2.1591,3879.7,3879.6,3.2078]
[1761322117029,2.62303,3879.3,3879.1,3.2078]
[1761322117720,2.62303,3879.3,3879.1,3.67175]
[1761322117925,3.2078,3880.4,3879.2,1.15984]
[1761322118123,2.0764,3880.2,3880.0,0.46384]
[1761322119034,9.686,3880.5,3880.4,0.46379]
[1761322119531,0.46377,3880.6,3880.0,2.0957]
[1761322119532,2.0764,3880.6,3880.0,2.0957]
[1761322120328,2.54018,3880.6,3880.0,2.0957]
[1761322120538,2.54018,3880.6,3880.4,0.4638]
[1761322120925,5.0,3880.6,3880.0,2.0957]
[1761322121239,1.16220975,3881.0,3880.9,2.0957]
[1761322121240,0.00285975,3881.0,3880.9,2.0957]
[1761322128040,0.00285975,3881.0,3880.9,2.55944]
[1761322130544,2.0793,3882.1,3881.4,2.9579]
[1761322130744,3.2078,3882.2,3881.2,5.3035]
[1761322130745,0.46368,3881.3,3881.2,5.3035]
[1761322130943,0.46371,3881.1,3880.9,2.55943]
[1761322131444,0.46623186,3881.1,3880.9,2.55943]
[1761322132035,0.46623186,3881.1,3880.9,2.0957]
[1761322132242,2.54303,3880.9,3880.7,3.2078]
[1761322132453,2.54303,3880.9,3880.5,2.0957]
[1761322132454,0.46376,3880.7,3880.5,2.0957]
[1761322132639,2.54308,3880.5,3880.3,3.2078]
[1761322132937,2.54308,3880.5,3880.0,2.0957]
[1761322132938,0.46382,3880.2,3880.0,2.0957]
[1761322133139,0.46384,3880.0,3879.6,0.8622]
[1761322133343,0.46385,3879.9,3879.7,2.55957]
[1761322133846,0.46385,3879.9,3879.7,2.0957]
[1761322134033,0.46384,3880.1,3879.7,2.55957]
[1761322134235,0.46379,3880.5,3880.1,2.0957]
[1761322134544,0.46379,3880.5,3879.9,3.2078]
[1761322134545,2.0793,3880.7,3880.3,2.0957]
[1761322134745,0.46378,3880.5,3880.3,2.0957]
[1761322134946,2.54306,3880.7,3880.4,2.0957]
[1761322135145,0.46377,3880.6,3880.4,2.0957]
[1761322135345,2.54307,3880.6,3880.4,2.0957]
[1761322135734,2.54307,3880.6,3880.4,2.55949]
[1761322137343,0.46377,3880.6,3880.4,2.55949]
[1761322138445,0.46377,3880.6,3880.3,3.2078]
[1761322138446,0.46376,3880.7,3880.6,1.9296]
[1761322138648,0.46379,3880.4,3880.3,3.2078]
[1761322139045,0.46379,3880.4,3880.3,5.1374]
[1761322139847,2.27939,3880.4,3880.3,3.2078]
[1761322140146,0.46379,3880.4,3880.3,1.9296]
[1761322140351,0.46383,3880.1,3880.0,1.9296]
[1761322140950,2.27943,3880.1,3880.0,1.9296]
[1761322141352,0.46383,3880.1,3880.0,1.9296]
[1761322141951,1.02730335,3880.1,3880.0,1.9296]
[1761322142144,2.84290335,3880.1,3880.0,1.9296]
[1761322142346,0.46388,3879.7,3879.6,0.8622]
[1761322142547,0.46388,3879.7,3879.6,1.32609]
[1761322143054,0.46388,3879.7,3879.6,3.25569]
[1761322143252,0.46388,3879.7,3879.6,2.39349]
[1761322143451,0.46395,3879.1,3879.0,0.8622]
[1761322143658,0.46398,3878.8,3878.6,3.2078]
[1761322144154,0.46398,3878.8,3878.7,1.93290949]
[1761322145155,2.27958,3878.8,3878.7,0.00330949]
[1761322146754,2.27958,3878.8,3878.7,1.93290949]
[1761322148354,0.46398,3878.8,3878.7,1.93290949]
[1761322150661,10.12698,3878.8,3878.7,1.93290949]
[1761322152164,0.46398,3878.8,3878.7,1.93290949]
[1761322152362,10.12698,3878.8,3878.7,1.93290949]
[1761322152665,11.79318,3878.8,3878.7,0.00330949]
[1761322153168,16.79218,3878.8,3878.7,0.00330949]
[1761322153371,0.46409,3877.9,3877.8,2.6268]
[1761322153568,0.46416,3877.3,3877.2,2.6268]
[1761322153859,4.874,3877.3,3876.7,1.8895]
[1761322154067,0.46421,3876.9,3876.7,1.8895]
[1761322154454,0.00280334,3876.9,3876.8,2.35373]
[1761322157858,0.00280334,3876.9,3876.8,1.8895]
[1761322158059,1.66900334,3876.9,3876.8,1.8895]
[1761322158256,0.00280334,3876.9,3876.8,1.8895]
[1761322159165,0.46701334,3876.9,3876.8,1.8895]
[1761322159467,0.46701334,3876.9,3876.8,2.35372]
[1761322159658,0.46701334,3876.9,3876.8,1.8895]
[1761322160758,0.46701334,3876.9,3876.8,2.35372]
[1761322160971,0.00280334,3876.9,3876.8,2.35372]
[1761322163074,0.46701334,3876.9,3876.8,1.8895]
[1761322165076,0.00280334,3876.9,3876.8,2.35372]
[1761322165270,0.00280334,3876.9,3876.8,4.87942]
[1761322173977,0.46409,3878.0,3877.9,4.87928]
[1761322174278,6.20542,3878.5,3878.4,4.4152]
[1761322174468,6.20542,3878.5,3878.4,3.1385]
[1761322174673,2.99765,3878.2,3878.1,1.8895]
[1761322174870,2.99769,3877.9,3877.8,1.249]
[1761322175075,0.46412,3877.6,3877.5,1.9642]
[1761322175266,1.76282,3877.6,3877.5,3.2409]
[1761322175576,1.2987,3877.8,3877.7,4.4152]
[1761322175773,0.4641,3877.8,3877.7,4.87931]
[1761322175976,0.00206663,3878.2,3877.6,3.2078]
[1761322175977,0.46611663,3878.2,3878.1,4.4152]
[1761322177083,0.46611663,3878.2,3878.1,4.87926]
[1761322177492,0.46611663,3878.2,3878.1,4.4152]
[1761322177875,0.46611663,3878.2,3878.1,4.87926]
[1761322178680,0.00206663,3878.2,3878.1,4.87926]
[1761322180070,2.76411663,3878.2,3878.1,4.4152]
[1761322180275,1.66031663,3878.2,3878.1,4.87926]
[1761322180483,0.46611663,3878.2,3878.1,4.87926]
[1761322181576,0.46611663,3878.2,3878.1,4.4152]
[1761322181778,1.66031663,3878.2,3878.1,4.4152]
[1761322182280,2.22512204,3878.2,3878.1,4.4152]
[1761322183183,1.03092204,3878.2,3878.1,4.87926]
[1761322183785,1.03092204,3878.2,3878.1,4.4152]
[1761322184284,2.22512204,3878.2,3878.1,4.4152]
[1761322185387,1.66031663,3878.2,3878.1,4.4152]
[1761322185571,0.46611663,3878.2,3878.1,4.4152]
[1761322185773,0.46611663,3878.2,3878.1,4.87926]
[1761322185983,0.46611663,3878.2,3878.1,4.4152]
[1761322186579,0.00206663,3878.2,3878.1,4.87926]
[1761322188879,0.46611663,3878.2,3878.1,4.87926]
[1761322189072,0.00206663,3878.2,3878.1,4.87926]
[1761322195290,1.66031663,3878.2,3878.1,4.4152]
[1761322195588,0.46611663,3878.2,3878.1,4.87926]
[1761322197688,0.00206663,3878.2,3878.1,4.87926]
[1761322198190,0.46611663,3878.2,3878.1,4.87926]
[1761322198392,1.54621663,3878.2,3878.1,4.87926]
[1761322199297,0.46611663,3878.2,3878.1,4.87926]
[1761322200181,0.00206663,3878.2,3878.1,4.87926]
[1761322201089,3.2078,3879.3,3879.2,4.22743]
[1761322201280,0.46391,3879.5,3879.4,4.2274]
[1761322201485,0.1744959,3879.7,3879.6,4.22738]
[1761322201687,3.2078,3880.2,3879.7,0.46386]
[1761322201991,3.67161,3880.2,3880.1,3.7635]
[1761322202293,4.24034643,3880.2,3880.1,3.7635]
[1761322202889,5.32044643,3880.2,3880.1,3.7635]
[1761322203296,6.38954643,3880.2,3880.1,3.7635]
[1761322204692,0.46386,3879.8,3879.6,0.00187219]
[1761322204992,0.464,3878.6,3878.2,9.621]
[1761322205185,1.0974,3878.6,3878.5,2.8012]
[1761322205386,0.46399,3878.7,3878.5,2.8012]
[1761322205789,0.46399,3878.7,3878.5,2.80418216]
[1761322206483,3.2078,3879.0,3878.7,0.46398]
[1761322206695,4.76911,3879.4,3879.3,1.0588]
[1761322206894,5.33483568,3879.4,3879.3,1.0588]
[1761322207187,6.40393568,3879.4,3879.3,2.6645]
[1761322207797,6.40393568,3879.4,3879.3,3.7635]
[1761322208598,1.36609353,3880.1,3880.0,4.1932]
[1761322208599,2.59482,3880.1,3880.0,4.1932]
[1761322208894,0.56634139,3880.1,3879.6,3.5529]
[1761322209097,4.7413777,3880.2,3880.1,3.5529]
[1761322209296,5.30749761,3880.2,3880.1,3.5529]
[1761322209995,0.56818761,3880.2,3880.1,1.92602]
[1761322210294,0.56818761,3880.2,3880.1,1.4622]
[1761322210295,1.03199761,3880.2,3880.1,1.4622]
[1761322210595,0.46385,3879.9,3879.8,1.4622]
[1761322211388,3.2098677,3880.2,3880.1,1.4622]
[1761322211592,4.23913604,3880.2,3880.1,1.4622]
[1761322211791,5.30683604,3880.2,3880.1,1.4622]
[1761322211993,0.46385,3879.9,3879.8,1.4622]
[1761322212798,1.53155,3879.9,3879.8,2.571]
[1761322212999,1.53155,3879.9,3879.8,3.5529]
[1761322213198,0.46385,3879.9,3879.8,3.5529]
[1761322214189,2.59485,3879.9,3879.8,3.5529]
[1761322216702,0.46385,3879.9,3879.8,3.5529]
[1761322216999,0.46385,3879.9,3879.8,4.01676]
[1761322217202,3.6736777,3880.2,3880.1,3.5529]
[1761322217504,3.6736777,3880.2,3880.1,4.01672]
[1761322217693,0.0020677,3880.2,3880.1,4.01672]
[1761322218102,0.46369,3881.2,3881.1,3.5529]
[1761322218495,1.02730373,3881.2,3881.1,3.5529]
[1761322218894,2.09700373,3881.2,3881.1,3.5529]
[1761322219394,1.53339,3881.2,3881.1,3.5529]
[1761322219596,1.53339,3881.2,3881.0,0.6403]
[1761322219597,3.2078,3881.4,3881.2,1.4622]
[1761322219798,4.2775,3881.4,3881.3,3.5529]
[1761322220000,4.74300591,3881.4,3881.3,3.55536821]
[1761322220806,4.34300591,3881.4,3881.3,3.55536821]
[1761322222318,1.53520591,3881.4,3881.3,3.55536821]
[1761322223105,0.46550591,3881.4,3881.3,3.55536821]
[1761322225100,3.66820591,3881.4,3881.3,0.00246821]
[1761322225405,2.59683,3880.1,3880.0,2.731]
[1761322225813,0.46383,3880.1,3880.0,4.1932]
[1761322226105,2.31811,3881.9,3880.5,2.731]
[1761322226106,1.0697,3880.6,3880.5,2.731]
[1761322226306,1.53353,3880.1,3880.0,2.731]
[1761322226509,1.53353,3880.1,3880.0,2.73369438]
[1761322226697,3.67157,3880.6,3880.5,4.1932]
[1761322227107,4.74127,3880.6,3880.5,4.1932]
[1761322227411,6.87427,3880.6,3880.5,1.4622]
[1761322228712,5.80457,3880.6,3880.5,3.2113]
[1761322229111,6.87427,3880.6,3880.5,1.4622]
[1761322230204,5.80457,3880.6,3880.5,2.571]
[1761322230407,5.80457,3880.6,3880.5,3.2113]
[1761322230911,5.80457,3880.6,3880.5,4.1932]
[1761322231104,5.80457,3880.6,3880.5,2.731]
[1761322231105,0.46377,3880.6,3880.5,2.731]
[1761322231311,0.46377,3880.6,3880.5,3.19478]
[1761322231711,0.46377,3880.6,3880.5,4.65698]
[1761322232310,0.46376,3880.7,3880.6,4.01666]
[1761322232514,0.46376,3880.7,3880.6,3.5529]
[1761322233215,0.46376,3880.7,3880.6,4.01667]
[1761322234909,3.2078,3881.1,3881.0,2.731]
[1761322235111,4.23505875,3881.1,3881.0,4.1932]
[1761322235313,6.36805875,3881.1,3881.0,4.1932]
[1761322236415,5.30475875,3881.1,3881.0,4.1932]
[1761322237213,4.23505875,3881.1,3881.0,4.1932]
[1761322237612,4.23505875,3881.1,3881.0,4.65692]
[1761322237812,0.46550591,3881.4,3881.3,2.3895]
[1761322238019,1.02987186,3881.4,3881.3,3.3706]
[1761322238216,2.59487186,3881.4,3881.3,2.4442]
[1761322238514,2.81121,3881.1,3881.0,1.4631]
[1761322238720,1.24627,3880.6,3880.5,2.5478]
[1761322239119,1.24627,3880.6,3880.5,4.0109]
[1761322239719,1.24627,3880.6,3880.5,1.4631]
[1761322239720,3.37576994,3880.6,3880.5,1.4631]
[1761322239921,12.96176994,3880.6,3880.5,1.4631]
[1761322240421,2.0288,3880.3,3880.2,4.1889]
[1761322240827,2.0288,3880.3,3880.2,6.5784]
[1761322241126,0.4638,3880.3,3880.2,6.5784]
[1761322241323,1.2463,3880.3,3880.2,6.5784]
[1761322241927,0.4638,3880.3,3880.2,7.04221]
[1761322242318,9.586,3880.6,3880.2,7.04221]
[1761322242319,0.7825,3880.5,3880.4,2.4442]
[1761322242616,1.81097181,3880.5,3880.4,2.4442]
[1761322243328,1.81097181,3880.5,3880.4,3.3706]
[1761322243622,0.56468181,3880.5,3880.4,3.83439]
[1761322243924,1.24628,3880.6,3880.5,3.9189]
[1761322244225,1.80902941,3880.6,3880.5,4.38268]
[1761322244527,1.80902941,3880.6,3880.1,1.9075]
[1761322244528,1.24631,3880.2,3880.1,1.9075]
[1761322244730,0.46381,3880.2,3880.1,1.9075]
[1761322245030,0.4638,3880.3,3880.2,3.83441]
[1761322245228,1.02670796,3880.3,3880.2,3.83441]
[1761322245626,0.46378,3880.5,3880.4,3.83439]
[1761322245826,1.02677,3880.5,3880.4,3.83439]
[1761322246729,0.56299,3880.5,3880.4,3.83439]
[1761322247726,3.67156,3880.7,3880.6,3.83437]
[1761322247924,3.77095469,3880.7,3880.6,3.83437]
[1761322248325,4.23470469,3880.7,3880.6,3.83437]
[1761322248631,0.56315469,3880.7,3880.6,3.83437]
[1761322249225,3.2078,3881.1,3880.8,3.83434]
[1761322249422,1.02690795,3881.0,3880.9,3.83432]
[1761322249623,1.02690795,3881.0,3880.9,3.3706]
[1761322252733,1.02690795,3881.0,3880.9,3.83433]
[1761322252933,1.02690795,3881.0,3880.9,3.3706]
[1761322253133,1.10746243,3881.0,3880.9,3.3706]
[1761322254430,1.88996243,3881.0,3880.9,3.3706]
[1761322255931,2.67246243,3881.0,3880.9,3.3706]
[1761322257429,2.67246543,3881.0,3880.9,3.3706]
[1761322259537,3.27386543,3881.0,3880.9,2.4442]
[1761322259943,2.67246543,3881.0,3880.9,2.4442]
[1761322260238,3.27386543,3881.0,3880.9,2.4442]
[1761322260439,4.17651222,3881.0,3880.9,2.4442]
[1761322260642,3.57511222,3881.0,3880.9,2.4442]
[1761322260829,0.46383,3880.1,3880.0,1.55559438]
[1761322261038,5.43761795,3880.1,3880.0,2.39149438]
[1761322261236,4.83621795,3880.1,3880.0,3.65539438]
[1761322261937,4.23481795,3880.1,3880.0,3.65539438]
[1761322262146,4.83621795,3880.1,3880.0,3.65539438]
[1761322263241,4.23481795,3880.1,3880.0,3.65539438]
[1761322265749,6.03901795,3880.1,3880.0,1.26659438]
[1761322265946,2.26809,3879.6,3879.5,0.6403]
[1761322266243,1.06535,3879.1,3879.0,2.2968]
[1761322266448,3.77098795,3879.1,3879.0,2.2968]
[1761322266635,11.22969,3879.6,3879.5,2.7256]
[1761322266837,11.87276803,3879.6,3879.5,2.7256]
[1761322267350,2.22917617,3879.6,3879.5,3.56386555]
[1761322267559,0.56248617,3879.6,3879.5,3.56386555]
[1761322267738,10.53077,3879.7,3879.6,2.9845]
[1761322268047,10.53077,3879.7,3879.5,0.00236555]
[1761322268048,1.97859,3879.6,3879.5,0.00236555]
[1761322268243,2.11656056,3879.6,3879.5,3.48726555]
[1761322268447,2.03596924,3879.6,3879.5,3.48726555]
[1761322269451,1.53106924,3879.6,3879.5,3.48726555]
[1761322269639,11.09306924,3879.6,3879.5,3.48726555]
[1761322270349,10.52879,3879.6,3879.5,3.48726555]
[1761322271253,3.2078,3879.8,3879.5,2.23476555]
[1761322271550,3.2078,3880.2,3880.1,3.44833]
[1761322271742,3.67161,3880.2,3880.1,2.9845]
[1761322271944,4.17651,3880.2,3880.1,2.9845]
[1761322272655,4.68141,3880.2,3880.1,2.9845]
[1761322272954,3.2078,3880.2,3880.1,2.9845]
[1761322273556,3.2078,3880.2,3880.1,3.44833]
[1761322274951,9.557,3880.4,3880.3,3.4483]
[1761322275150,0.56370322,3880.4,3880.3,3.4483]
[1761322275355,3.2078,3881.0,3880.9,2.9845]
[1761322275655,3.77158915,3881.0,3880.9,2.9845]
[1761322276456,1.01163591,3881.4,3881.3,2.9845]
[1761322276649,0.56561187,3881.4,3881.3,2.9845]
[1761322277043,0.00183591,3881.4,3881.3,2.9845]
[1761322278144,0.50673591,3881.4,3881.3,2.9845]
[1761322278453,1.01163591,3881.4,3881.3,2.9845]
[1761322278756,0.00183591,3881.4,3881.3,2.9845]
[1761322282672,1.01163591,3881.4,3881.3,2.1552]
[1761322283067,1.01163591,3881.4,3881.3,2.9845]
[1761322283263,0.00183591,3881.4,3881.3,2.9845]
[1761322283668,0.50673591,3881.4,3881.3,2.9845]
[1761322283864,1.01163591,3881.4,3881.3,2.9845]
[1761322284066,4.21943591,3881.4,3881.3,2.9845]
[1761322284267,4.72433591,3881.4,3881.3,1.2525]
[1761322284460,1.5147,3881.2,3881.1,1.2525]
[1761322284660,1.47353,3880.9,3880.8,1.2525]
[1761322284868,11.01953,3880.9,3880.8,1.2525]
[1761322285368,11.01953,3880.9,3880.8,2.1552]
[1761322286772,1.47357,3880.6,3880.5,1.7529]